bitfinex-derivatives/quotes_SOLF0:USTF0_20250127
["timestamp","ask_amount","ask_price","bid_price","bid_amount"]
[1737986503803,0.03025387,230.88,230.83,4.36338573]
[1737986504008,0.03025387,230.88,230.83,0.03108573]
[1737986504405,0.03025387,230.88,230.85,4.332]
[1737986504610,0.03025387,230.88,230.83,0.03108573]
[1737986505311,0.03025387,230.88,230.84,4.3321]
[1737986506314,0.03025387,230.88,230.86,4.3317]
[1737986506612,0.03025387,230.88,230.83,0.03108573]
[1737986506813,1.6938,230.98,230.85,17.29653072]
[1737986507010,4.3298,230.97,230.92,4.3306]
[1737986507314,1.4245,231.01,230.89,17.29653072]
[1737986508215,0.02932218,230.97,230.93,0.03274535]
[1737986508408,4.3303,230.94,230.93,0.03274535]
[1737986508714,0.02932218,230.97,230.93,0.03274535]
[1737986509518,4.3303,230.94,230.93,0.03274535]
[1737986509814,0.02932218,230.97,230.93,0.03274535]
[1737986510217,17.29653072,230.95,230.82,2.715]
[1737986510814,1.4459,230.96,230.84,17.29653072]
[1737986511314,0.02854266,230.92,230.88,4.3596589]
[1737986511614,0.02854266,230.92,230.88,0.0282589]
[1737986512215,0.02854266,230.92,230.88,17.32478962]
[1737986512809,1.3361,231.15,230.97,17.29653072]
[1737986513116,2.7201,231.15,230.97,17.29653072]
[1737986514017,0.03129591,231.08,231.04,4.35673502]
[1737986514210,0.03129591,231.08,231.04,0.02833502]
[1737986515013,4.3263,231.16,231.06,4.328]
[1737986515218,17.29653072,231.2,231.04,0.02833502]
[1737986515409,17.29653072,231.24,231.05,17.29653072]
[1737986515715,4.3256,231.2,231.11,4.327]
[1737986516316,0.03072022,231.18,231.13,0.02879347]
[1737986517312,0.03072022,231.18,231.14,4.3265]
[1737986517516,0.03072022,231.18,231.13,0.02879347]
[1737986518014,0.03072022,231.18,231.15,4.3263]
[1737986518317,4.3364,231.33,231.14,17.29653072]
[1737986518515,4.324,231.28,231.21,4.3252]
[1737986518714,4.3364,231.33,231.21,4.3252]
[1737986519117,4.3234,231.31,231.18,17.29653072]
[1737986519317,4.3364,231.33,231.18,17.29653072]
[1737986519517,4.3262,231.16,231.09,4.3273]
[1737986519715,17.29653072,231.23,231.01,1.494]
[1737986519916,17.29653072,231.23,231.21,0.02953256]
[1737986520116,0.03250133,231.17,231.01,1.494]
[1737986520515,17.29653072,231.19,231.01,1.4222]
[1737986520716,17.29653072,231.24,231.01,5.7511]
[1737986520717,17.29653072,231.15,231.01,5.7511]
[1737986520912,17.29653072,231.15,231.01,1.4222]
[1737986521116,4.327,231.12,231.03,4.3286]
[1737986521418,0.03035572,231.1,231.06,0.03007735]
[1737986523516,0.03035572,231.1,230.95,28.03145964]
[1737986523717,28.03145964,231.06,230.87,28.03145964]
[1737986523914,2.7164,231.05,230.87,28.03145964]
[1737986524117,2.7164,231.05,230.91,28.03145964]
[1737986524320,2.7164,231.05,230.95,28.03145964]
[1737986524514,7.7866,231.14,230.99,28.03145964]
[1737986524721,7.7866,231.14,230.91,29.45905964]
[1737986524722,5.556e-05,231.02,230.98,0.0287421]
[1737986524917,28.03145964,231.22,231.07,4.3278]
[1737986525222,4.3259,231.18,231.05,28.03145964]
[1737986525422,28.03145964,231.22,231.05,28.03145964]
[1737986525816,2.7164,231.23,231.05,28.03145964]
[1737986526122,0.0300226,231.16,231.11,0.02887188]
[1737986526717,4.3563226,231.16,231.11,0.02887188]
[1737986526921,0.0300226,231.16,230.98,1.5452]
[1737986527313,28.03145964,231.14,230.98,5.7428]
[1737986527517,28.03145964,231.14,230.91,29.59085964]
[1737986527718,28.03145964,231.14,230.91,31.00425964]
[1737986527915,28.03145964,231.1,230.92,4.3305]
[1737986528116,0.03092941,231.05,231.0,0.03126662]
[1737986530017,0.03092941,231.05,231.02,4.3288]
[1737986530219,0.03092941,231.05,231.0,28.06272626]
[1737986530926,0.03092941,231.05,231.0,0.03126662]
[1737986532323,4.3288,231.03,231.0,0.03126662]
[1737986532619,0.59702941,231.08,231.0,0.03126662]
[1737986533024,4.3281,231.06,231.0,0.03126662]
[1737986533220,0.59702941,231.08,231.0,0.03126662]
[1737986533922,0.03216862,231.06,231.0,0.03126662]
[1737986534823,4.3289,231.02,231.0,0.03126662]
[1737986535325,0.03216862,231.06,231.0,0.03126662]
[1737986535620,4.3288,231.03,231.0,0.03126662]
[1737986535823,0.03216862,231.06,231.0,0.03126662]
[1737986536224,4.3284,231.05,231.0,0.03126662]
[1737986536416,0.03216862,231.06,231.0,0.03126662]
[1737986537124,4.3284,231.05,231.0,0.03126662]
[1737986537324,0.03216862,231.06,231.0,0.03126662]
[1737986537526,0.03216862,231.06,231.0,28.06272626]
[1737986537823,0.03216862,231.06,231.02,4.3288]
[1737986538527,3.0469,231.16,231.04,28.03145964]
[1737986538722,8.6447,231.37,231.04,28.03145964]
[1737986538928,28.03145964,231.26,231.04,28.03145964]
[1737986539626,28.03145964,231.26,231.06,4.328]
[1737986539823,0.03185008,231.17,231.13,0.02958349]
[1737986540021,28.03145964,231.26,231.13,0.02958349]
[1737986540329,0.03205386,231.17,231.13,0.02958349]
[1737986540529,28.03145964,231.26,231.13,0.02958349]
[1737986540725,0.03012874,231.17,231.13,0.02958349]
[1737986540925,28.03145964,231.18,230.98,1.015]
[1737986541130,28.03145964,231.14,230.96,28.03145964]
[1737986541327,4.3277,231.08,230.96,32.36135964]
[1737986541627,1.3172,231.13,230.96,32.36135964]
[1737986541828,4.328,231.07,230.97,4.3297]
[1737986542126,0.02991562,231.07,231.02,0.03259879]
[1737986543130,4.35781562,231.07,231.02,0.03259879]
[1737986543329,0.02991562,231.07,231.02,0.03259879]
[1737986544934,4.3281,231.06,231.02,0.03259879]
[1737986545231,0.02991562,231.07,230.92,28.03145964]
[1737986545433,1.32,231.05,230.92,28.03145964]
[1737986546132,4.3283,231.05,230.93,4.3304]
[1737986546431,0.02947413,231.01,230.96,0.02955621]
[1737986546935,0.03136627,231.01,230.96,0.03299516]
[1737986547432,0.03136627,231.01,230.96,28.0644548]
[1737986548126,0.03136627,231.01,230.99,4.3292]
[1737986549831,0.03136627,231.01,230.96,0.03299516]
[1737986550032,28.03145964,231.06,231.02,109.77983373]
[1737986550332,28.03145964,231.06,231.02,41.58013373]
[1737986550533,4.3286,231.03,231.02,41.58013373]
[1737986550737,28.03145964,231.06,230.8,28.03145964]
[1737986551035,28.03145964,231.1,230.88,28.03145964]
[1737986551237,0.03025532,230.95,230.91,0.03206673]
[1737986551535,28.03145964,231.04,230.84,28.03145964]
[1737986551837,0.03311179,230.95,230.91,0.03264566]
[1737986552228,4.3292,231.0,230.91,0.03264566]
[1737986552428,0.03020753,230.95,230.91,0.03264566]
[1737986552735,28.03145964,231.0,230.91,0.03264566]
[1737986552935,4.3307,230.92,230.91,4.566e-05]
[1737986553129,28.06076073,230.95,230.73,1.3723]
[1737986553331,28.03145964,230.85,230.73,1.3723]
[1737986553636,28.03145964,230.85,230.69,1.5985]
[1737986554034,4.3319,230.86,230.69,1.5985]
[1737986554234,28.03145964,230.92,230.72,28.03145964]
[1737986554539,28.03145964,230.96,230.81,4.3327]
[1737986554735,32.36145964,230.96,230.77,1.415]
[1737986554940,28.03145964,231.0,230.8,28.03145964]
[1737986555138,28.03145964,231.0,230.83,4.3322]
[1737986555338,4.3302,230.95,230.81,2.9708]
[1737986555738,0.03222365,230.9,230.86,0.03114279]
[1737986556845,3.44,231.06,230.88,28.03145964]
[1737986557040,28.03145964,231.14,230.92,28.03145964]
[1737986557245,28.03145964,231.14,230.93,1.6422]
[1737986557645,4.3268,231.13,230.94,1.4068]
[1737986557846,28.03145964,231.14,230.94,1.4068]
[1737986558145,0.0328876,231.06,231.01,4.35842635]
[1737986558543,0.0328876,231.06,231.01,0.02952635]
[1737986561543,4.3610876,231.06,231.01,0.02952635]
[1737986561848,0.0328876,231.06,231.01,0.02952635]
[1737986562249,28.06434724,231.06,231.01,0.02952635]
[1737986563453,28.03145964,231.02,230.89,1.4205]
[1737986564447,4.3306,230.93,230.89,1.4205]
[1737986564849,28.03145964,230.98,230.89,0.02893845]
[1737986565046,0.03100739,230.93,230.89,0.02893845]
[1737986566453,4.3308,230.92,230.89,0.02893845]
[1737986566754,0.03100739,230.93,230.89,3.845e-05]
[1737986566957,28.03145964,230.91,230.74,1.6343]
[1737986567155,28.03145964,230.86,230.74,1.6343]
[1737986567454,4.3332,230.79,230.74,1.6343]
[1737986567647,3.44,230.89,230.74,1.6343]
[1737986568154,0.03024009,230.84,230.79,0.02855697]
[1737986568751,4.3331,230.8,230.79,0.02855697]
[1737986568955,28.03145964,230.82,230.67,1.6903]
[1737986569253,4.3324,230.84,230.7,4.3348]
[1737986569452,3.44,230.89,230.69,28.03145964]
[1737986569655,3.44,230.89,230.73,28.03145964]
[1737986569856,4.3315,230.88,230.73,28.03145964]
[1737986570154,0.03049786,230.83,230.79,0.03112382]
[1737986572949,28.03145964,230.94,230.79,0.03112382]
[1737986573149,3.44,230.99,230.79,0.03112382]
[1737986573355,3.44,230.99,230.77,28.03145964]
[1737986574056,4.3309,230.91,230.81,4.3328]
[1737986574257,0.02993714,230.9,230.85,0.03038077]
[1737986575663,28.03145964,231.02,230.85,28.06184041]
[1737986575960,28.03145964,231.06,230.89,28.03145964]
[1737986576155,28.03145964,231.06,230.9,1.4287]
[1737986576552,28.03145964,231.12,230.91,1.6869]
[1737986576754,28.03145964,231.12,230.93,28.03145964]
[1737986576959,0.02941705,231.04,230.99,0.02852963]
[1737986581463,28.03145964,231.0,230.99,0.02852963]
[1737986581663,4.3299,230.97,230.92,1.3798]
[1737986581862,28.03145964,231.0,230.92,1.3798]
[1737986582058,28.03145964,231.04,230.92,1.3798]
[1737986582663,4.3299,230.97,230.92,1.3798]
[1737986582864,4.3299,230.97,230.96,0.03284345]
[1737986583261,0.03068664,231.0,230.96,0.03284345]
[1737986583668,0.03068664,231.0,230.99,390.91077781]
[1737986585067,28.03145964,231.12,230.99,390.91077781]
[1737986585367,28.03145964,231.21,231.0,28.03145964]
[1737986586168,0.03179934,231.13,231.08,0.02869578]
[1737986586467,120.28023932,231.1,231.08,0.02869578]
[1737986587270,4.3275,231.09,231.08,0.02869578]
[1737986587966,120.28023932,231.1,231.08,0.02869578]
[1737986588369,5.99940287,231.12,231.02,4.3287]
[1737986588568,4.3276,231.09,230.97,1.4411]
[1737986588868,28.03145964,231.12,230.99,4.3293]
[1737986589071,4.3275,231.1,230.97,1.4411]
[1737986589363,28.03145964,231.12,230.97,1.4411]
[1737986589670,4.3289,231.02,231.01,0.03140947]
[1737986589968,28.03145964,231.04,230.8,4.3329]
[1737986590168,28.03145964,230.95,230.81,3.53136975]
[1737986590564,28.03145964,230.95,230.81,2.7711]
[1737986590762,4.3315,230.89,230.81,2.7711]
[1737986590965,28.03145964,230.95,230.81,2.7711]
[1737986591169,0.03300026,230.87,230.83,0.03197097]
[1737986591570,28.03145964,230.86,230.83,0.03197097]
[1737986591970,4.3321,230.85,230.83,0.03197097]
[1737986592167,28.03145964,230.86,230.83,0.03197097]
[1737986592469,4.332,230.85,230.83,0.03197097]
[1737986592669,28.03145964,230.86,230.83,0.03197097]
[1737986592868,0.03300026,230.87,230.83,0.03197097]
[1737986595773,28.0644599,230.87,230.83,0.03197097]
[1737986596273,0.03300026,230.87,230.83,0.03197097]
[1737986597875,4.36470026,230.87,230.83,0.03197097]
[1737986598877,0.03300026,230.87,230.83,0.03197097]
[1737986600273,4.3322,230.85,230.83,0.03197097]
[1737986600778,4.3335,230.78,230.69,1.67]
[1737986601175,28.03145964,230.88,230.69,1.67]
[1737986601879,0.02799283,230.81,230.76,0.03245452]
[1737986603079,4.3334,230.78,230.76,0.03245452]
[1737986604575,0.02799283,230.81,230.76,0.03245452]
[1737986605081,4.3334,230.79,230.76,0.03245452]
[1737986606077,4.3334,230.78,230.76,0.03245452]
[1737986606382,0.02799283,230.81,230.76,0.03245452]
[1737986606983,28.03145964,230.8,230.76,5.452e-05]
[1737986607484,4.3336,230.77,230.76,5.452e-05]
[1737986607675,28.03145964,230.8,230.76,5.452e-05]
[1737986607984,0.02799283,230.81,230.76,5.452e-05]
[1737986608781,0.02799283,230.81,230.72,28.03145964]
[1737986608976,1.64496195,230.82,230.77,4.3334]
[1737986609183,17.99748585,230.83,230.76,28.03145964]
[1737986609382,17.99748585,230.83,230.73,4.3918]
[1737986609580,21.6463,231.06,230.73,4.3918]
[1737986609581,28.03145964,230.86,230.73,4.3918]
[1737986610078,4.3326,230.82,230.77,0.03308489]
[1737986610283,4.36274886,230.82,230.77,0.03308489]
[1737986610487,0.03014886,230.82,230.77,0.03308489]
[1737986612380,0.03014886,230.82,230.77,4.36658489]
[1737986612579,0.03014886,230.82,230.77,0.03308489]
[1737986612981,4.3332,230.79,230.77,0.03308489]
[1737986613177,0.03014886,230.82,230.77,0.03308489]
[1737986615090,4.36284886,230.82,230.77,0.03308489]
[1737986615689,0.03014886,230.82,230.77,0.03308489]
[1737986616190,4.3329,230.81,230.77,0.03308489]
[1737986616382,0.03014886,230.82,230.77,0.03308489]
[1737986617490,28.03145964,230.81,230.77,0.03308489]
[1737986619087,28.03145964,230.81,230.65,3.0533]
[1737986619292,28.03145964,230.74,230.65,1.6154]
[1737986619793,28.03145964,230.74,230.61,1.3248]
[1737986619991,28.03145964,230.78,230.62,1.6993]
[1737986620185,4.783,230.8,230.62,1.6993]
[1737986620384,0.02748161,230.72,230.68,28.06164405]
[1737986620585,17.99748585,230.82,230.76,4.3338]
[1737986620785,17.99748585,230.82,230.72,28.03145964]
[1737986620995,17.99748585,230.82,230.73,1.3286]
[1737986621190,17.99748585,230.8,230.73,1.3286]
[1737986621394,17.99748585,230.8,230.74,1.6993]
[1737986621588,0.03183842,230.79,230.75,0.02917635]
[1737986623193,17.99748585,230.88,230.75,0.02917635]
[1737986624390,0.03061939,230.84,230.75,0.02917635]
[1737986624897,0.03061939,230.84,230.76,28.03145964]
[1737986625090,17.99748585,230.89,230.75,0.02917635]
[1737986625091,17.99748585,230.89,230.8,28.03145964]
[1737986625294,17.99748585,230.89,230.85,4.332]
[1737986625499,11.09238585,230.89,230.86,1.6253]
[1737986625700,47.9932956,230.91,230.86,1.6253]
[1737986625897,45.4428956,230.91,230.86,1.6253]
[1737986626194,0.03125412,230.91,230.88,28.03145964]
[1737986626497,0.03125412,230.91,230.86,0.0329688]
[1737986627598,0.03125412,230.91,230.89,4.3313]
[1737986627798,0.03125412,230.91,230.86,0.0329688]
[1737986628199,4.36235412,230.91,230.86,0.0329688]
[1737986628701,0.03125412,230.91,230.86,0.0329688]
[1737986630000,0.03125412,230.91,230.87,4.3317]
[1737986630502,0.03125412,230.91,230.86,0.0329688]
[1737986630701,4.3314,230.89,230.86,0.0329688]
[1737986630901,0.03125412,230.91,230.86,0.0329688]
[1737986632001,4.3318,230.87,230.86,0.0329688]
[1737986632696,0.03125412,230.91,230.86,0.0329688]
[1737986633996,0.03125412,230.91,230.78,4.3334]
[1737986634304,2.9961,230.92,230.78,4.3334]
[1737986635206,4.35961452,230.87,230.83,0.0306211]
[1737986635406,0.02781452,230.87,230.83,0.0306211]
[1737986635605,0.02781452,230.87,230.73,0.76055716]
[1737986635805,0.02781452,230.87,230.72,28.03145964]
[1737986635806,28.03145964,230.89,230.72,28.03145964]
[1737986636007,4.3315,230.89,230.79,4.3331]
[1737986636307,2.9961,230.92,230.76,28.03145964]
[1737986636605,2.9961,230.92,230.72,28.03145964]
[1737986636808,0.03294752,230.86,230.82,0.03123698]
[1737986637207,4.3325,230.83,230.82,0.03123698]
[1737986638811,0.03294752,230.86,230.64,17.29408654]
[1737986638812,4.3334,230.78,230.64,17.29408654]
[1737986639011,18.62428654,230.85,230.65,0.76080193]
[1737986639806,17.29408654,230.76,230.65,0.76080193]
[1737986640011,1.5376,230.75,230.58,4.3371]
[1737986640206,17.29408654,230.72,230.59,0.76100965]
[1737986640406,1.4227,230.71,230.55,74.24]
[1737986640603,1.4227,230.71,230.56,17.29408654]
[1737986640808,4.3351,230.7,230.6,4.3368]
[1737986641007,4.3351,230.7,230.56,17.29408654]
[1737986641207,0.03268695,230.66,230.6,17.29408654]
[1737986641410,0.03268695,230.66,230.64,17.29408654]
[1737986641612,0.03268695,230.66,230.65,4.3359]
[1737986642302,0.03268695,230.66,230.6,17.29408654]
[1737986642508,0.03268695,230.66,230.58,28.13275552]
[1737986642909,0.03268695,230.66,230.57,4.3372]
[1737986643805,0.03268695,230.66,230.52,28.13275552]
[1737986644208,1.3835,230.72,230.52,28.13275552]
[1737986644404,0.02860519,230.61,230.52,28.13275552]
[1737986644711,0.02860519,230.61,230.57,4.3372]
[1737986644911,0.02860519,230.61,230.52,28.13275552]
[1737986645107,1.4227,230.74,230.6,28.13275552]
[1737986645412,1.3835,230.81,230.7,28.13275552]
[1737986646113,1.3835,230.81,230.64,28.13275552]
[1737986646310,0.02991944,230.78,230.73,0.03309294]
[1737986646515,92.39630359,230.83,230.77,28.13275552]
[1737986646712,1.362,230.88,230.77,28.13275552]
[1737986647915,0.0287409,230.85,230.84,4.3323]
[1737986648317,0.03278977,230.87,230.84,4.3323]
[1737986648920,0.03278977,230.87,230.82,0.02877192]
[1737986649816,0.03278977,230.87,230.85,28.13275552]
[1737986650220,0.03278977,230.87,230.82,0.02877192]
[1737986651321,0.03278977,230.87,230.82,4.36137192]
[1737986651619,0.03278977,230.87,230.82,28.16152744]
[1737986651919,0.03278977,230.87,230.83,4.3324]
[1737986652120,0.03278977,230.87,230.82,0.02877192]
[1737986652525,0.03278977,230.87,230.69,28.13275552]
[1737986652716,28.13275552,230.84,230.62,74.32]
[1737986652921,28.13275552,230.8,230.62,74.32]
[1737986653124,4.3344,230.73,230.62,74.32]
[1737986653425,2.9341,230.79,230.62,74.32]
[1737986653722,0.02873941,230.73,230.68,0.02831955]
[1737986654723,4.335,230.71,230.68,0.02831955]
[1737986654925,0.02873941,230.73,230.68,0.02831955]
[1737986655317,4.36343941,230.73,230.68,0.02831955]
[1737986655618,0.02873941,230.73,230.68,0.02831955]
[1737986657922,0.02873941,230.73,230.69,4.335]
[1737986658321,0.02873941,230.73,230.68,0.02831955]
[1737986659524,4.36313941,230.73,230.68,0.02831955]
[1737986659720,0.02873941,230.73,230.56,28.13275552]
[1737986660025,1.402,230.72,230.57,0.76109684]
[1737986660227,4.3351,230.69,230.58,4.337]
[1737986660423,28.13275552,230.68,230.57,0.76109684]
[1737986660624,1.6688,230.67,230.48,28.13275552]
[1737986660819,1.6688,230.67,230.49,0.76133066]
[1737986661024,0.02958893,230.6,230.49,0.76133066]
[1737986661227,0.02958893,230.6,230.53,28.13275552]
[1737986661428,1.6688,230.67,230.57,28.13275552]
[1737986662127,1.402,230.72,230.57,28.13275552]
[1737986662325,1.402,230.72,230.58,0.76116132]
[1737986662625,1.6963,230.75,230.67,4.3354]
[1737986662821,1.3199,230.78,230.65,28.13275552]
[1737986663022,17.90499738,230.79,230.72,4.3345]
[1737986663224,17.90499738,230.79,230.69,28.13275552]
[1737986663526,17.90499738,230.79,230.77,4.3335]
[1737986663726,17.90499738,230.79,230.73,28.13275552]
[1737986664123,0.02755032,230.78,230.74,0.03302049]
[1737986664928,17.90499738,230.97,230.77,28.13275552]
[1737986665129,17.90499738,230.97,230.83,28.13275552]
[1737986665622,17.90499738,230.97,230.91,28.13275552]
[1737986665827,17.90499738,230.97,230.92,4.3306]
[1737986666027,17.90499738,230.97,230.91,28.13275552]
[1737986666227,0.02861371,230.96,230.92,0.02784172]
[1737986666430,0.02861371,230.96,230.93,4.3305]
[1737986666830,0.02861371,230.96,230.92,0.02784172]
[1737986667731,0.02861371,230.96,230.76,28.13275552]
[1737986668029,4.3316,230.88,230.77,0.76032183]
[1737986668230,28.13275552,230.92,230.77,0.76032183]
[1737986668433,2.9649,230.91,230.73,0.76066464]
[1737986668629,2.9649,230.91,230.72,28.13275552]
[1737986668829,0.03338227,230.84,230.8,0.03006516]
[1737986670133,0.03338227,230.84,230.8,4.36306516]
[1737986670334,0.03338227,230.84,230.8,0.03006516]
[1737986670538,0.03338227,230.84,230.8,28.16282068]
[1737986670735,0.03338227,230.84,230.82,4.3326]
[1737986670935,0.03338227,230.84,230.8,0.03006516]
[1737986672233,0.03338227,230.84,230.82,4.3326]
[1737986672935,0.00728227,230.84,230.82,4.3326]
[1737986673136,1.4494,230.99,230.8,28.16282068]
[1737986673328,1.4494,230.99,230.92,4.3306]
[1737986673531,1.4494,230.99,230.88,28.13275552]
[1737986673735,5.7789,230.99,230.91,4.3309]
[1737986674334,0.03334071,230.97,230.93,0.03293583]
[1737986674738,4.3303,230.95,230.93,0.03293583]
[1737986674938,0.03334071,230.97,230.93,0.03293583]
[1737986675338,4.3304,230.94,230.93,0.03293583]
[1737986675533,4.3304,230.94,230.84,28.13275552]
[1737986675839,1.4494,230.99,230.84,28.13275552]
[1737986676239,4.3302,230.95,230.86,4.3319]
[1737986676438,1.4494,230.99,230.84,28.13275552]
[1737986676739,0.03248732,230.94,230.89,0.03125909]
[1737986676940,0.03248732,230.94,230.91,4.3309]
[1737986677241,0.03248732,230.94,230.89,0.03125909]
[1737986677537,0.03248732,230.94,230.91,4.3308]
[1737986677738,0.03248732,230.94,230.89,0.03125909]
[1737986678139,0.03248732,230.94,230.89,4.36255909]
[1737986679443,0.03248732,230.94,230.89,0.03125909]
[1737986680542,4.3306,230.93,230.89,0.03125909]
[1737986680841,5.9650274,231.09,230.92,28.13275552]
[1737986681044,5.9650274,231.09,231.04,28.13275552]
[1737986681642,5.9650274,231.1,231.04,13.63481883]
[1737986681945,0.02756384,231.09,231.05,0.03236245]
[1737986682647,28.16031936,231.09,230.85,28.13275552]
[1737986682844,28.13275552,231.05,230.85,28.13275552]
[1737986683043,4.3294,231.0,230.86,4.3319]
[1737986683349,3.1425,231.04,230.97,28.13275552]
[1737986683643,28.13275552,231.17,230.98,0.0297977]
[1737986683946,3.1425,231.16,230.97,28.13275552]
[1737986684147,0.03017585,231.1,231.05,0.02964042]
[1737986687947,0.03017585,231.1,231.05,28.16239594]
[1737986690451,0.03017585,231.1,231.07,4.3279]
[1737986690651,0.03017585,231.1,231.05,28.16239594]
[1737986691952,0.03017585,231.1,231.05,32.49069594]
[1737986693155,0.03017585,231.1,231.05,0.02964042]
[1737986693355,4.3282,231.06,231.05,0.02964042]
[1737986694153,4.3295,231.0,230.96,28.13275552]
[1737986694352,28.13275552,231.13,230.94,74.24]
[1737986694353,3.1504,231.09,230.94,74.24]
[1737986694651,4.3284,231.05,230.94,74.24]
[1737986694850,3.1504,231.09,230.94,74.24]
[1737986695348,0.02897715,231.04,230.99,0.03080046]
[1737986695553,0.02897715,231.04,230.88,28.13275552]
[1737986695749,28.13275552,231.05,230.84,28.13275552]
[1737986696054,28.13275552,231.01,230.84,28.13275552]
[1737986696554,4.3304,230.95,230.84,32.46505552]
[1737986696755,0.0290801,230.95,230.8,28.13275552]
[1737986697054,4.3309,230.92,230.8,32.46575552]
[1737986697256,0.02963999,230.9,230.88,28.13275552]
[1737986697555,4.3288,231.03,230.9,4.3311]
[1737986697754,0.0280831,230.91,230.9,4.3311]
[1737986697955,1.7275,231.08,230.9,4.3311]
[1737986698251,0.02902332,230.93,230.9,4.3311]
[1737986698456,41.79106038,231.04,230.9,4.3311]
[1737986698751,41.79106038,231.04,230.88,28.13275552]
[1737986699054,0.02751061,230.99,230.96,28.13275552]
[1737986699355,0.02751061,230.99,230.97,4.3298]
[1737986699756,0.02751061,230.99,230.96,20.33736096]
[1737986699757,14.06310077,230.98,230.96,20.33736096]
[1737986700055,31.37132609,230.98,230.96,9.51959114]
[1737986700249,10.81776982,230.97,230.96,32.46275552]
[1737986700448,5.82127136,230.98,230.96,32.46275552]
[1737986700649,14.31495853,231.08,230.96,28.13275552]
[1737986700847,14.31495853,231.08,231.06,28.13275552]
[1737986701052,14.31495853,231.08,230.97,28.13275552]
[1737986701248,14.31495853,231.08,231.0,28.13275552]
[1737986701451,14.31495853,231.08,230.96,28.13275552]
[1737986701647,8.34993113,231.08,230.96,28.13275552]
[1737986701847,0.03138529,231.04,231.0,0.03234948]
[1737986702250,0.03138529,231.04,231.0,28.165105]
[1737986702648,0.03138529,231.04,231.01,19.55318412]
[1737986702952,0.03138529,231.04,231.01,12.95378412]
[1737986703256,4.3294,231.0,230.88,28.13275552]
[1737986703446,29.81965552,231.07,230.88,28.13275552]
[1737986703652,28.13275552,231.03,230.84,28.13275552]
[1737986704152,28.13275552,231.03,230.89,10.36179989]
[1737986704359,0.03273634,230.96,230.89,10.36179989]
[1737986704755,0.03273634,230.96,230.9,10.36179989]
[1737986704955,28.13275552,230.99,230.9,10.36179989]
[1737986705157,0.03161734,230.95,230.9,10.36179989]
[1737986705965,0.03161734,230.95,230.84,28.13275552]
[1737986705966,0.03161734,230.95,230.88,28.13275552]
[1737986706162,0.03161734,230.95,230.93,28.13275552]
[1737986706356,0.03002462,230.96,230.93,28.13275552]
[1737986706560,8.34993113,231.08,230.95,28.13275552]
[1737986707261,8.34993113,231.08,231.0,4.3292]
[1737986707461,8.34993113,231.08,230.95,28.13275552]
[1737986707657,0.02865628,231.06,231.02,0.03050422]
[1737986708265,0.02865628,231.06,231.02,28.16325974]
[1737986708861,0.02865628,231.06,231.03,4.3287]
[1737986709066,0.02865628,231.06,231.02,28.16325974]
[1737986709266,0.02865628,231.06,231.02,0.03050422]
[1737986709567,4.3284,231.05,231.02,0.03050422]
[1737986709762,0.02865628,231.06,231.02,0.03050422]
[1737986709963,0.02865628,231.06,231.04,4.3285]
[1737986710167,0.02865628,231.06,231.03,28.13275552]
[1737986710973,0.02865628,231.06,231.02,0.03050422]
[1737986711568,0.02865628,231.06,230.95,28.13275552]
[1737986711569,0.02865628,231.06,230.87,28.13275552]
[1737986711769,29.56705552,231.07,230.87,28.13275552]
[1737986712268,4.3302,230.96,230.87,32.46435552]
[1737986712468,29.56705552,231.07,230.87,28.13275552]
[1737986712668,1.4343,231.07,230.91,28.13275552]
[1737986712868,0.02953468,230.99,230.91,28.13275552]
[1737986713372,0.02953468,230.99,230.92,4.3307]
[1737986713573,0.02953468,230.99,230.91,28.13275552]
[1737986714073,0.02953468,230.99,230.96,28.13275552]
[1737986714268,1.4343,231.07,230.96,28.13275552]
[1737986714467,0.03188638,231.0,230.96,28.13275552]
[1737986714673,0.03188638,231.0,230.92,28.13275552]
[1737986714875,1.4343,231.07,230.88,28.13275552]
[1737986715175,0.03134853,230.95,230.88,28.13275552]
[1737986715474,0.02890757,230.94,230.84,28.13275552]
[1737986715667,0.02890757,230.94,230.89,4.3313]
[1737986716072,0.02890757,230.94,230.84,28.13275552]
[1737986716271,0.02890757,230.94,230.88,28.13275552]
[1737986716471,0.02890757,230.94,230.92,28.13275552]
[1737986717775,5.9650274,231.07,230.92,28.13275552]
[1737986718074,5.9650274,231.07,230.97,28.13275552]
[1737986718281,8.34993113,231.08,230.93,28.13275552]
[1737986718573,8.34993113,231.08,231.02,28.13275552]
[1737986718775,8.34993113,231.08,230.98,28.13275552]
[1737986718975,0.03125407,231.07,231.03,0.03090389]
[1737986720578,0.03125407,231.07,231.02,28.11172411]
[1737986721175,5.407e-05,231.07,231.06,28.13275552]
[1737986721476,5.9650274,231.18,231.06,28.13275552]